[Event "Titled Tuesday Blitz May 9 Early 2023"]
[White "Putri, Regita Desyari"]
[Black "Rios Escobar, Adan"]
[WhiteFideId "7109083"]
[BlackFideId "3403645"]
[WhiteElo "1930"]
[BlackElo "2414"]
[Result "0-1"]
[Round "04"]
[TimeControl "180+2"]
[Date "2023.05.09"]
[WhiteClock "0:00:04"]
[BlackClock "0:00:08"]

1. e4 {[%clk 0:02:57]}  c5 {[%clk 0:02:50]} 2. Nf3 {[%clk 0:02:57]}  d6 {[%clk 0:02:51]} 3. d4 {[%clk 0:02:56]}  cxd4 {[%clk 0:02:52]} 4. Nxd4 {[%clk 0:02:57]}  Nf6 {[%clk 0:02:53]} 5. Nc3 {[%clk 0:02:57]}  a6 {[%clk 0:02:53]} 6. h3 {[%clk 0:02:57]}  e5 {[%clk 0:02:52]} 7. Nde2 {[%clk 0:02:56]}  h5 {[%clk 0:02:53]} 8. g3 {[%clk 0:02:55]}  Be6 {[%clk 0:02:49]} 9. Bg2 {[%clk 0:02:55]}  Be7 {[%clk 0:02:50]} 10. O-O {[%clk 0:02:55]}  Nbd7 {[%clk 0:02:50]} 11. a4 {[%clk 0:02:48]}  Rc8 {[%clk 0:02:50]} 12. Be3 {[%clk 0:02:48]}  Nb6 {[%clk 0:02:49]} 13. b3 {[%clk 0:02:45]}  d5 {[%clk 0:02:48]} 14. Bxb6 {[%clk 0:02:40]}  Qxb6 {[%clk 0:02:49]} 15. exd5 {[%clk 0:02:40]}  Bd7 {[%clk 0:02:49]} 16. Kh2 {[%clk 0:02:15]}  Qd6 {[%clk 0:02:46]} 17. Qd3 {[%clk 0:01:31]}  Bd8 {[%clk 0:02:44]} 18. Ne4 {[%clk 0:01:28]}  Nxe4 {[%clk 0:02:43]} 19. Bxe4 {[%clk 0:01:29]}  g6 {[%clk 0:02:35]} 20. c4 {[%clk 0:01:19]}  f5 {[%clk 0:02:33]} 21. Bg2 {[%clk 0:01:17]}  h4 {[%clk 0:02:22]} 22. f4 {[%clk 0:01:11]}  hxg3+ {[%clk 0:02:11]} 23. Qxg3 {[%clk 0:01:10]}  Bh4 {[%clk 0:01:56]} 24. Qe3 {[%clk 0:01:04]}  Bf6 {[%clk 0:01:46]} 25. Rae1 {[%clk 0:00:56]}  Kd8 {[%clk 0:01:42]} 26. Kh1 {[%clk 0:00:51]}  g5 {[%clk 0:01:19]} 27. fxg5 {[%clk 0:00:36]}  f4 {[%clk 0:01:17]} 28. Qc3 {[%clk 0:00:32]}  Bxg5 {[%clk 0:00:59]} 29. Ng1 {[%clk 0:00:31]}  Bf6 {[%clk 0:00:48]} 30. Qd3 {[%clk 0:00:24]}  Kc7 {[%clk 0:00:41]} 31. Rb1 {[%clk 0:00:15]}  Kb8 {[%clk 0:00:40]} 32. b4 {[%clk 0:00:15]}  Rh5 {[%clk 0:00:37]} 33. c5 {[%clk 0:00:15]}  Qf8 {[%clk 0:00:32]} 34. c6 {[%clk 0:00:07]}  Bf5 {[%clk 0:00:30]} 35. Qe2 {[%clk 0:00:07]}  Bxb1 {[%clk 0:00:28]} 36. Qxh5 {[%clk 0:00:07]}  Bd3 {[%clk 0:00:21]} 37. Rd1 {[%clk 0:00:05]}  e4 {[%clk 0:00:21]} 38. cxb7 {[%clk 0:00:04]}  Rc2 {[%clk 0:00:19]} 39. d6 {[%clk 0:00:03]}  Qxd6 {[%clk 0:00:17]} 40. Qg6 {[%clk 0:00:02]}  Be5 {[%clk 0:00:10]} 41. Qe8+ {[%clk 0:00:02]}  Kxb7 {[%clk 0:00:10]} 42. b5 {[%clk 0:00:02]}  axb5 {[%clk 0:00:10]} 43. axb5 {[%clk 0:00:03]}  f3 {[%clk 0:00:09]} 44. Qf7+ {[%clk 0:00:03]}  Qc7 {[%clk 0:00:09]} 45. Bf1 {[%clk 0:00:04]}  Rh2# {[%clk 0:00:08]} 0-1


[Site "https://www.chess.com"]

[Event "Titled Tuesday Blitz May 9 Early 2023"]
[White "Carrasco Miranda, Andres"]
[Black "Dahlgren, James Allen"]
[WhiteFideId "3405990"]
[BlackFideId "22256873"]
[WhiteElo "2183"]
[BlackElo "2180"]
[Result "0-1"]
[Round "04"]
[TimeControl "180+2"]
[Date "2023.05.09"]
[WhiteClock "0:00:30"]
[BlackClock "0:00:22"]

1. d4 {[%clk 0:03:00]}  e6 {[%clk 0:02:59]} 2. c4 {[%clk 0:03:00]}  c5 {[%clk 0:02:59]} 3. d5 {[%clk 0:03:00]}  exd5 {[%clk 0:02:58]} 4. cxd5 {[%clk 0:03:01]}  f5 {[%clk 0:02:58]} 5. Nc3 {[%clk 0:03:01]}  Nf6 {[%clk 0:02:58]} 6. Bg5 {[%clk 0:02:56]}  d6 {[%clk 0:02:50]} 7. e4 {[%clk 0:02:55]}  Be7 {[%clk 0:02:44]} 8. Bxf6 {[%clk 0:02:44]}  Bxf6 {[%clk 0:02:43]} 9. Bd3 {[%clk 0:02:45]}  f4 {[%clk 0:02:37]} 10. Nf3 {[%clk 0:02:38]}  O-O {[%clk 0:02:35]} 11. Nd2 {[%clk 0:02:35]}  Nd7 {[%clk 0:02:31]} 12. Nc4 {[%clk 0:02:31]}  Ne5 {[%clk 0:02:30]} 13. Nxe5 {[%clk 0:02:31]}  Bxe5 {[%clk 0:02:31]} 14. g3 {[%clk 0:02:31]}  f3 {[%clk 0:02:27]} 15. a4 {[%clk 0:02:28]}  Bh3 {[%clk 0:02:16]} 16. Bf1 {[%clk 0:02:21]}  Bg2 {[%clk 0:01:38]} 17. Bxg2 {[%clk 0:02:17]}  fxg2 {[%clk 0:01:39]} 18. Rg1 {[%clk 0:02:18]}  Qf6 {[%clk 0:01:35]} 19. Rxg2 {[%clk 0:02:16]}  Bxc3+ {[%clk 0:01:34]} 20. bxc3 {[%clk 0:02:16]}  Qxc3+ {[%clk 0:01:34]} 21. Kf1 {[%clk 0:02:16]}  Rae8 {[%clk 0:01:31]} 22. Qc1 {[%clk 0:01:14]}  Qd3+ {[%clk 0:01:17]} 23. Kg1 {[%clk 0:01:13]}  Rxe4 {[%clk 0:01:17]} 24. h3 {[%clk 0:01:05]}  Qxd5 {[%clk 0:01:10]} 25. a5 {[%clk 0:01:03]}  Re2 {[%clk 0:01:06]} 26. Rb1 {[%clk 0:00:58]}  h6 {[%clk 0:00:54]} 27. Rb2 {[%clk 0:00:37]}  Rxb2 {[%clk 0:00:45]} 28. Qxb2 {[%clk 0:00:38]}  c4 {[%clk 0:00:42]} 29. f4 {[%clk 0:00:38]}  Qxa5 {[%clk 0:00:37]} 30. Qxb7 {[%clk 0:00:38]}  d5 {[%clk 0:00:30]} 31. Qc6 {[%clk 0:00:35]}  Qb6+ {[%clk 0:00:28]} 32. Qxb6 {[%clk 0:00:35]}  axb6 {[%clk 0:00:28]} 33. Rd2 {[%clk 0:00:34]}  Rd8 {[%clk 0:00:28]} 34. Kf2 {[%clk 0:00:34]}  d4 {[%clk 0:00:28]} 35. Rb2 {[%clk 0:00:35]}  Rd6 {[%clk 0:00:24]} 36. Ke2 {[%clk 0:00:34]}  Kf7 {[%clk 0:00:24]} 37. Rb5 {[%clk 0:00:33]}  d3+ {[%clk 0:00:23]} 38. Kd2 {[%clk 0:00:33]}  c3+ {[%clk 0:00:21]} 39. Kxc3 {[%clk 0:00:30]}  d2 {[%clk 0:00:22]} 0-1


[Site "https://www.chess.com"]

[Event "Titled Tuesday Blitz May 9 Early 2023"]
[White "Acikel, Mert"]
[Black "Llanos, Guillermo"]
[WhiteFideId "12956465"]
[BlackFideId "100358"]
[WhiteElo "2097"]
[BlackElo "2225"]
[Result "0-1"]
[Round "04"]
[TimeControl "180+2"]
[Date "2023.05.09"]
[WhiteClock "0:00:02"]
[BlackClock "0:00:58"]

1. e4 {[%clk 0:02:59]}  Nf6 {[%clk 0:02:59]} 2. e5 {[%clk 0:02:59]}  Nd5 {[%clk 0:02:59]} 3. d4 {[%clk 0:02:58]}  d6 {[%clk 0:02:59]} 4. c4 {[%clk 0:02:58]}  Nb6 {[%clk 0:02:59]} 5. exd6 {[%clk 0:02:57]}  cxd6 {[%clk 0:02:59]} 6. Nc3 {[%clk 0:02:57]}  g6 {[%clk 0:02:59]} 7. Be3 {[%clk 0:02:56]}  Bg7 {[%clk 0:02:59]} 8. Rc1 {[%clk 0:02:57]}  O-O {[%clk 0:02:59]} 9. b3 {[%clk 0:02:58]}  Bf5 {[%clk 0:03:00]} 10. g4 {[%clk 0:02:56]}  Bd7 {[%clk 0:02:54]} 11. Bg2 {[%clk 0:02:55]}  Nc6 {[%clk 0:02:53]} 12. d5 {[%clk 0:02:53]}  Ne5 {[%clk 0:02:50]} 13. h3 {[%clk 0:02:51]}  f5 {[%clk 0:02:49]} 14. f4 {[%clk 0:02:49]}  Nf7 {[%clk 0:02:49]} 15. g5 {[%clk 0:02:48]}  Re8 {[%clk 0:02:33]} 16. Nf3 {[%clk 0:02:38]}  e5 {[%clk 0:02:32]} 17. dxe6 {[%clk 0:02:39]}  Rxe6 {[%clk 0:02:31]} 18. Kf2 {[%clk 0:02:39]}  Bc6 {[%clk 0:02:18]} 19. Bd4 {[%clk 0:02:34]}  Ne5 {[%clk 0:01:47]} 20. fxe5 {[%clk 0:01:13]}  dxe5 {[%clk 0:01:46]} 21. Bc5 {[%clk 0:01:06]}  e4 {[%clk 0:01:39]} 22. Qxd8+ {[%clk 0:00:40]}  Rxd8 {[%clk 0:01:38]} 23. Ne1 {[%clk 0:00:36]}  f4 {[%clk 0:01:23]} 24. Nb5 {[%clk 0:00:16]}  Rd2+ {[%clk 0:01:20]} 25. Kg1 {[%clk 0:00:14]}  f3 {[%clk 0:01:12]} 26. Bf1 {[%clk 0:00:14]}  e3 {[%clk 0:01:00]} 27. Rh2 {[%clk 0:00:02]}  f2+ {[%clk 0:00:58]} 0-1


[Site "https://www.chess.com"]

[Event "Titled Tuesday Blitz May 9 Early 2023"]
[White "De Souza, Cristiano Gomes"]
[Black "Ciuffoletti, Paolo"]
[WhiteFideId "2151758"]
[BlackFideId "807630"]
[WhiteElo "2068"]
[BlackElo "2143"]
[Result "1-0"]
[Round "04"]
[TimeControl "180+2"]
[Date "2023.05.09"]
[WhiteClock "0:00:53"]
[BlackClock "0:00:07"]

1. d4 {[%clk 0:02:53]}  d5 {[%clk 0:02:57]} 2. c4 {[%clk 0:02:53]}  c6 {[%clk 0:02:58]} 3. Nf3 {[%clk 0:02:53]}  Nf6 {[%clk 0:02:58]} 4. Nc3 {[%clk 0:02:51]}  dxc4 {[%clk 0:02:57]} 5. a4 {[%clk 0:02:50]}  e6 {[%clk 0:02:56]} 6. Bg5 {[%clk 0:02:47]}  Bb4 {[%clk 0:02:38]} 7. e4 {[%clk 0:02:45]}  Bxc3+ {[%clk 0:02:23]} 8. bxc3 {[%clk 0:02:42]}  Qa5 {[%clk 0:02:22]} 9. Bxf6 {[%clk 0:02:41]}  Qxc3+ {[%clk 0:02:21]} 10. Nd2 {[%clk 0:02:40]}  gxf6 {[%clk 0:02:19]} 11. Rc1 {[%clk 0:02:39]}  Qxd4 {[%clk 0:02:17]} 12. Rxc4 {[%clk 0:02:38]}  Qd6 {[%clk 0:02:08]} 13. Be2 {[%clk 0:02:36]}  O-O {[%clk 0:02:04]} 14. Qc2 {[%clk 0:02:32]}  Nd7 {[%clk 0:01:48]} 15. O-O {[%clk 0:02:29]}  Ne5 {[%clk 0:01:36]} 16. Rc3 {[%clk 0:02:26]}  Kh8 {[%clk 0:01:15]} 17. f4 {[%clk 0:02:24]}  Ng6 {[%clk 0:01:03]} 18. g3 {[%clk 0:02:21]}  Rg8 {[%clk 0:00:52]} 19. Kh1 {[%clk 0:02:20]}  Bd7 {[%clk 0:00:50]} 20. Rd3 {[%clk 0:02:19]}  Qe7 {[%clk 0:00:47]} 21. Nc4 {[%clk 0:02:15]}  Rad8 {[%clk 0:00:45]} 22. Rfd1 {[%clk 0:02:13]}  Bc8 {[%clk 0:00:41]} 23. Bf3 {[%clk 0:02:00]}  b6 {[%clk 0:00:40]} 24. Ne3 {[%clk 0:01:58]}  Ba6 {[%clk 0:00:39]} 25. Rxd8 {[%clk 0:01:53]}  Rxd8 {[%clk 0:00:39]} 26. Rxd8+ {[%clk 0:01:53]}  Qxd8 {[%clk 0:00:40]} 27. Kg2 {[%clk 0:01:46]}  Qd4 {[%clk 0:00:38]} 28. Kf2 {[%clk 0:01:24]}  c5 {[%clk 0:00:37]} 29. h4 {[%clk 0:01:18]}  Bd3 {[%clk 0:00:37]} 30. Qd2 {[%clk 0:01:11]}  Bxe4 {[%clk 0:00:35]} 31. Qxd4 {[%clk 0:01:10]}  cxd4 {[%clk 0:00:34]} 32. Bxe4 {[%clk 0:01:10]}  dxe3+ {[%clk 0:00:34]} 33. Kxe3 {[%clk 0:01:10]}  Kg7 {[%clk 0:00:33]} 34. Kd3 {[%clk 0:01:06]}  h6 {[%clk 0:00:31]} 35. Kc4 {[%clk 0:01:06]}  f5 {[%clk 0:00:27]} 36. Bb7 {[%clk 0:01:03]}  e5 {[%clk 0:00:27]} 37. fxe5 {[%clk 0:01:01]}  Nxe5+ {[%clk 0:00:27]} 38. Kb5 {[%clk 0:01:00]}  Nd3 {[%clk 0:00:22]} 39. Ka6 {[%clk 0:00:59]}  f4 {[%clk 0:00:22]} 40. gxf4 {[%clk 0:00:57]}  Nxf4 {[%clk 0:00:23]} 41. Kxa7 {[%clk 0:00:57]}  Nd3 {[%clk 0:00:20]} 42. Kxb6 {[%clk 0:00:55]}  Kf6 {[%clk 0:00:16]} 43. a5 {[%clk 0:00:54]}  Nb4 {[%clk 0:00:07]} 44. Kb5 {[%clk 0:00:53]} 1-0


[Site "https://www.chess.com"]

[Event "Titled Tuesday Blitz May 9 Early 2023"]
[White "Chemin, Justo Reinaldo"]
[Black "Vaglio Munoz, Jaime"]
[WhiteFideId "2101580"]
[BlackFideId "6500145"]
[WhiteElo "1940"]
[BlackElo "2199"]
[Result "1-0"]
[Round "04"]
[TimeControl "180+2"]
[Date "2023.05.09"]
[WhiteClock "0:00:03"]
[BlackClock "0:00:38"]

1. d4 {[%clk 0:03:00]}  c6 {[%clk 0:02:58]} 2. e4 {[%clk 0:02:57]}  d5 {[%clk 0:02:56]} 3. exd5 {[%clk 0:02:57]}  Qxd5 {[%clk 0:02:54]} 4. Nf3 {[%clk 0:02:57]}  Bg4 {[%clk 0:02:52]} 5. Be2 {[%clk 0:02:56]}  e6 {[%clk 0:02:50]} 6. O-O {[%clk 0:02:55]}  Nd7 {[%clk 0:02:48]} 7. c4 {[%clk 0:02:49]}  Qa5 {[%clk 0:02:47]} 8. Nc3 {[%clk 0:02:45]}  Ngf6 {[%clk 0:02:46]} 9. a3 {[%clk 0:02:44]}  Rd8 {[%clk 0:02:41]} 10. Be3 {[%clk 0:02:38]}  Qc7 {[%clk 0:02:34]} 11. b4 {[%clk 0:02:33]}  Bd6 {[%clk 0:02:33]} 12. h3 {[%clk 0:02:31]}  Bxf3 {[%clk 0:02:31]} 13. Bxf3 {[%clk 0:02:30]}  Bf4 {[%clk 0:02:31]} 14. Qe2 {[%clk 0:02:22]}  O-O {[%clk 0:02:29]} 15. Rad1 {[%clk 0:02:19]}  Rfe8 {[%clk 0:02:28]} 16. Rfe1 {[%clk 0:02:07]}  h6 {[%clk 0:02:27]} 17. g3 {[%clk 0:01:56]}  Bxe3 {[%clk 0:02:18]} 18. Qxe3 {[%clk 0:01:56]}  e5 {[%clk 0:02:17]} 19. d5 {[%clk 0:01:45]}  cxd5 {[%clk 0:02:07]} 20. Nxd5 {[%clk 0:01:27]}  Qxc4 {[%clk 0:01:59]} 21. Nxf6+ {[%clk 0:01:26]}  Nxf6 {[%clk 0:01:54]} 22. Bxb7 {[%clk 0:01:22]}  e4 {[%clk 0:01:47]} 23. Rxd8 {[%clk 0:01:19]}  Rxd8 {[%clk 0:01:45]} 24. Qxa7 {[%clk 0:00:55]}  Qc3 {[%clk 0:01:39]} 25. Re3 {[%clk 0:00:43]}  Qc1+ {[%clk 0:01:29]} 26. Kg2 {[%clk 0:00:40]}  Qc2 {[%clk 0:01:20]} 27. Qc5 {[%clk 0:00:33]}  Qb1 {[%clk 0:01:12]} 28. Qc3 {[%clk 0:00:19]}  Rd1 {[%clk 0:01:09]} 29. Bxe4 {[%clk 0:00:13]}  Nxe4 {[%clk 0:01:04]} 30. Qc8+ {[%clk 0:00:12]}  Kh7 {[%clk 0:01:02]} 31. Qf5+ {[%clk 0:00:13]}  g6 {[%clk 0:01:01]} 32. Qxf7+ {[%clk 0:00:12]}  Kh8 {[%clk 0:01:01]} 33. Qe8+ {[%clk 0:00:12]}  Kg7 {[%clk 0:01:00]} 34. Qxe4 {[%clk 0:00:12]}  Rh1 {[%clk 0:00:59]} 35. Qe5+ {[%clk 0:00:09]}  Kf7 {[%clk 0:00:57]} 36. Qe6+ {[%clk 0:00:09]}  Kf8 {[%clk 0:00:57]} 37. Qe7+ {[%clk 0:00:09]}  Kg8 {[%clk 0:00:56]} 38. Qd8+ {[%clk 0:00:09]}  Kf7 {[%clk 0:00:56]} 39. Re7+ {[%clk 0:00:09]}  Kf6 {[%clk 0:00:56]} 40. Re1+ {[%clk 0:00:09]}  Kf5 {[%clk 0:00:55]} 41. Rxb1 {[%clk 0:00:08]}  Rxb1 {[%clk 0:00:56]} 42. Qf8+ {[%clk 0:00:08]}  Ke6 {[%clk 0:00:54]} 43. Qxh6 {[%clk 0:00:08]}  Kf6 {[%clk 0:00:54]} 44. Qf4+ {[%clk 0:00:07]}  Kg7 {[%clk 0:00:54]} 45. Qe5+ {[%clk 0:00:06]}  Kh6 {[%clk 0:00:53]} 46. b5 {[%clk 0:00:07]}  Rb3 {[%clk 0:00:51]} 47. a4 {[%clk 0:00:06]}  g5 {[%clk 0:00:48]} 48. a5 {[%clk 0:00:06]}  g4 {[%clk 0:00:48]} 49. hxg4 {[%clk 0:00:06]}  Rb1 {[%clk 0:00:44]} 50. b6 {[%clk 0:00:05]}  Kg6 {[%clk 0:00:43]} 51. a6 {[%clk 0:00:05]}  Rxb6 {[%clk 0:00:40]} 52. a7 {[%clk 0:00:03]}  Ra6 {[%clk 0:00:40]} 53. Qe4+ {[%clk 0:00:02]}  Kg5 {[%clk 0:00:40]} 54. a8=Q {[%clk 0:00:02]}  Re6 {[%clk 0:00:38]} 55. Qf4+ {[%clk 0:00:02]}  Kg6 {[%clk 0:00:38]} 56. Qg8# {[%clk 0:00:03]} 1-0


[Site "https://www.chess.com"]

[Event "Titled Tuesday Blitz May 9 Early 2023"]
[White "Stead, Kerry"]
[Black "Thomas, Anysia"]
[WhiteFideId "3202577"]
[BlackFideId "670472"]
[WhiteElo "1997"]
[BlackElo "2091"]
[Result "0-1"]
[Round "04"]
[TimeControl "180+2"]
[Date "2023.05.09"]
[WhiteClock "0:00:00"]
[BlackClock "0:00:27"]

1. d4 {[%clk 0:03:00]}  Nf6 {[%clk 0:03:00]} 2. f3 {[%clk 0:02:59]}  d5 {[%clk 0:02:49]} 3. e4 {[%clk 0:02:59]}  dxe4 {[%clk 0:02:49]} 4. Nc3 {[%clk 0:02:58]}  exf3 {[%clk 0:02:50]} 5. Nxf3 {[%clk 0:02:58]}  g6 {[%clk 0:02:50]} 6. Bg5 {[%clk 0:02:52]}  Bg7 {[%clk 0:02:50]} 7. Qd2 {[%clk 0:02:51]}  O-O {[%clk 0:02:50]} 8. O-O-O {[%clk 0:02:50]}  c5 {[%clk 0:02:49]} 9. dxc5 {[%clk 0:02:42]}  Qxd2+ {[%clk 0:02:48]} 10. Rxd2 {[%clk 0:02:40]}  Nc6 {[%clk 0:02:48]} 11. a3 {[%clk 0:02:35]}  Bf5 {[%clk 0:02:47]} 12. Bc4 {[%clk 0:02:26]}  a5 {[%clk 0:02:46]} 13. h3 {[%clk 0:02:19]}  h6 {[%clk 0:02:42]} 14. Bf4 {[%clk 0:02:14]}  g5 {[%clk 0:02:32]} 15. Bh2 {[%clk 0:02:04]}  Rac8 {[%clk 0:02:21]} 16. Rhd1 {[%clk 0:01:56]}  Bg6 {[%clk 0:02:19]} 17. Na4 {[%clk 0:01:40]}  Na7 {[%clk 0:01:30]} 18. Bb3 {[%clk 0:01:06]}  Ne4 {[%clk 0:01:27]} 19. Rd7 {[%clk 0:00:59]}  Nxc5 {[%clk 0:01:26]} 20. Nxc5 {[%clk 0:00:57]}  Rxc5 {[%clk 0:01:25]} 21. Rxb7 {[%clk 0:00:51]}  Nc6 {[%clk 0:01:14]} 22. Rc7 {[%clk 0:00:43]}  Be4 {[%clk 0:00:55]} 23. Rdd7 {[%clk 0:00:32]}  Rb8 {[%clk 0:00:39]} 24. Nd2 {[%clk 0:00:23]}  Bxg2 {[%clk 0:00:33]} 25. Bg1 {[%clk 0:00:00]}  Re5 {[%clk 0:00:27]} 0-1


[Site "https://www.chess.com"]

[Event "Titled Tuesday Blitz May 9 Early 2023"]
[White "Torres Dominguez, David"]
[Black "Nugumanov, Bakhtiyar"]
[WhiteFideId "2220857"]
[BlackFideId "13701797"]
[WhiteElo "1999"]
[BlackElo "2209"]
[Result "1-0"]
[Round "04"]
[TimeControl "180+2"]
[Date "2023.05.09"]
[WhiteClock "0:00:13"]
[BlackClock "0:00:01"]

1. e4 {[%clk 0:02:55]}  e6 {[%clk 0:03:00]} 2. d4 {[%clk 0:02:55]}  d5 {[%clk 0:03:00]} 3. exd5 {[%clk 0:02:56]}  exd5 {[%clk 0:03:00]} 4. Bd3 {[%clk 0:02:56]}  Nc6 {[%clk 0:02:55]} 5. Nf3 {[%clk 0:02:55]}  Bd6 {[%clk 0:02:41]} 6. c3 {[%clk 0:02:55]}  Nge7 {[%clk 0:02:42]} 7. O-O {[%clk 0:02:55]}  O-O {[%clk 0:02:38]} 8. Re1 {[%clk 0:02:45]}  Bf5 {[%clk 0:02:35]} 9. Bf1 {[%clk 0:02:42]}  Ng6 {[%clk 0:02:29]} 10. Be3 {[%clk 0:02:22]}  Qd7 {[%clk 0:02:23]} 11. Nbd2 {[%clk 0:02:21]}  Rfe8 {[%clk 0:02:19]} 12. Qb3 {[%clk 0:02:21]}  Na5 {[%clk 0:02:13]} 13. Qb5 {[%clk 0:02:15]}  Qxb5 {[%clk 0:02:04]} 14. Bxb5 {[%clk 0:02:15]}  c6 {[%clk 0:02:05]} 15. Bf1 {[%clk 0:02:15]}  b6 {[%clk 0:01:56]} 16. Bg5 {[%clk 0:01:46]}  f6 {[%clk 0:01:51]} 17. Bh4 {[%clk 0:01:46]}  Nf4 {[%clk 0:01:47]} 18. Bg3 {[%clk 0:01:43]}  Kf7 {[%clk 0:01:39]} 19. b4 {[%clk 0:01:31]}  Nb7 {[%clk 0:01:37]} 20. Ba6 {[%clk 0:01:31]}  Nd8 {[%clk 0:01:27]} 21. Rxe8 {[%clk 0:01:30]}  Kxe8 {[%clk 0:01:28]} 22. Re1+ {[%clk 0:01:24]}  Kd7 {[%clk 0:01:29]} 23. c4 {[%clk 0:00:58]}  g5 {[%clk 0:01:17]} 24. c5 {[%clk 0:00:48]}  Bc7 {[%clk 0:01:14]} 25. b5 {[%clk 0:00:46]}  h5 {[%clk 0:01:03]} 26. h4 {[%clk 0:00:38]}  g4 {[%clk 0:00:57]} 27. Nh2 {[%clk 0:00:38]}  Nde6 {[%clk 0:00:53]} 28. bxc6+ {[%clk 0:00:37]}  Kxc6 {[%clk 0:00:53]} 29. Nb3 {[%clk 0:00:29]}  bxc5 {[%clk 0:00:30]} 30. dxc5 {[%clk 0:00:27]}  Rb8 {[%clk 0:00:22]} 31. Nf1 {[%clk 0:00:24]}  d4 {[%clk 0:00:15]} 32. Bxf4 {[%clk 0:00:22]}  Bxf4 {[%clk 0:00:14]} 33. g3 {[%clk 0:00:21]}  Be5 {[%clk 0:00:13]} 34. Nfd2 {[%clk 0:00:20]}  Nxc5 {[%clk 0:00:12]} 35. Rc1 {[%clk 0:00:19]}  Bd6 {[%clk 0:00:12]} 36. Bf1 {[%clk 0:00:16]}  Rb4 {[%clk 0:00:08]} 37. Bg2+ {[%clk 0:00:15]}  Kb6 {[%clk 0:00:07]} 38. Nc4+ {[%clk 0:00:15]}  Kb5 {[%clk 0:00:05]} 39. Nxd6+ {[%clk 0:00:14]}  Kb6 {[%clk 0:00:01]} 40. Nxf5 {[%clk 0:00:13]} 1-0


[Site "https://www.chess.com"]

[Event "Titled Tuesday Blitz May 9 Early 2023"]
[White "Cramling Bellon, Anna"]
[Black "Clawitter, Craig"]
[WhiteFideId "32009232"]
[BlackFideId "2023105"]
[WhiteElo "1976"]
[BlackElo "2240"]
[Result "0-1"]
[Round "04"]
[TimeControl "180+2"]
[Date "2023.05.09"]
[WhiteClock "0:00:04"]
[BlackClock "0:00:14"]

1. e3 {[%clk 0:03:00]}  g6 {[%clk 0:02:57]} 2. d3 {[%clk 0:03:00]}  Bg7 {[%clk 0:02:55]} 3. Ne2 {[%clk 0:02:56]}  d5 {[%clk 0:02:55]} 4. Nd2 {[%clk 0:02:55]}  c5 {[%clk 0:02:55]} 5. Ng3 {[%clk 0:02:55]}  h5 {[%clk 0:02:53]} 6. h3 {[%clk 0:02:48]}  Nc6 {[%clk 0:02:48]} 7. Nb3 {[%clk 0:02:47]}  b6 {[%clk 0:02:39]} 8. a4 {[%clk 0:02:07]}  h4 {[%clk 0:02:30]} 9. Ne2 {[%clk 0:02:07]}  e5 {[%clk 0:02:25]} 10. a5 {[%clk 0:02:03]}  Be6 {[%clk 0:02:11]} 11. axb6 {[%clk 0:02:01]}  axb6 {[%clk 0:02:12]} 12. Rxa8 {[%clk 0:01:58]}  Qxa8 {[%clk 0:02:13]} 13. e4 {[%clk 0:01:55]}  d4 {[%clk 0:02:04]} 14. f4 {[%clk 0:01:26]}  f6 {[%clk 0:01:50]} 15. fxe5 {[%clk 0:01:20]}  fxe5 {[%clk 0:01:49]} 16. Bg5 {[%clk 0:01:18]}  Bf6 {[%clk 0:01:01]} 17. Qc1 {[%clk 0:01:01]}  Bxb3 {[%clk 0:00:49]} 18. cxb3 {[%clk 0:00:54]}  Nb4 {[%clk 0:00:47]} 19. Ng1 {[%clk 0:00:20]}  Bxg5 {[%clk 0:00:35]} 20. Qxg5 {[%clk 0:00:20]}  Qa1+ {[%clk 0:00:35]} 21. Kf2 {[%clk 0:00:08]}  Qxb2+ {[%clk 0:00:24]} 22. Kf3 {[%clk 0:00:08]}  Ne7 {[%clk 0:00:21]} 23. Qxe5 {[%clk 0:00:06]}  O-O+ {[%clk 0:00:20]} 24. Kg4 {[%clk 0:00:04]}  Rxf1 {[%clk 0:00:15]} 25. Qxe7 {[%clk 0:00:04]}  Qxg2+ {[%clk 0:00:14]} 26. Kxh4 {[%clk 0:00:04]}  Rf4# {[%clk 0:00:14]} 0-1


[Site "https://www.chess.com"]

[Event "Titled Tuesday Blitz May 9 Early 2023"]
[White "Srdanovic, Jovana"]
[Black "Maluco_do_Natal_00"]
[WhiteFideId "954810"]
[WhiteElo "2169"]
[BlackElo "2019"]
[Result "1-0"]
[Round "04"]
[TimeControl "180+2"]
[Date "2023.05.09"]
[WhiteClock "0:00:30"]
[BlackClock "0:00:00"]

1. d4 {[%clk 0:03:00]}  d5 {[%clk 0:02:59]} 2. c4 {[%clk 0:02:58]}  c6 {[%clk 0:02:59]} 3. Nf3 {[%clk 0:02:58]}  Nf6 {[%clk 0:02:59]} 4. Nc3 {[%clk 0:02:59]}  dxc4 {[%clk 0:03:00]} 5. a4 {[%clk 0:02:58]}  Bf5 {[%clk 0:03:00]} 6. Ne5 {[%clk 0:02:59]}  Nbd7 {[%clk 0:02:59]} 7. Nxc4 {[%clk 0:03:00]}  Nb6 {[%clk 0:03:00]} 8. Ne5 {[%clk 0:03:00]}  Nbd7 {[%clk 0:02:56]} 9. Nc4 {[%clk 0:02:53]}  Nb6 {[%clk 0:02:54]} 10. Nxb6 {[%clk 0:02:48]}  Qxb6 {[%clk 0:02:46]} 11. e3 {[%clk 0:02:46]}  Rd8 {[%clk 0:02:38]} 12. a5 {[%clk 0:02:40]}  Qc7 {[%clk 0:02:32]} 13. Bd3 {[%clk 0:02:28]}  Bxd3 {[%clk 0:02:23]} 14. Qxd3 {[%clk 0:02:29]}  e5 {[%clk 0:02:18]} 15. O-O {[%clk 0:02:15]}  Be7 {[%clk 0:02:14]} 16. Qc4 {[%clk 0:01:44]}  exd4 {[%clk 0:02:06]} 17. exd4 {[%clk 0:01:44]}  O-O {[%clk 0:02:02]} 18. h3 {[%clk 0:01:44]}  Nd5 {[%clk 0:01:44]} 19. Nxd5 {[%clk 0:01:39]}  Rxd5 {[%clk 0:01:43]} 20. Bd2 {[%clk 0:01:39]}  Bf6 {[%clk 0:01:37]} 21. Bc3 {[%clk 0:01:36]}  a6 {[%clk 0:01:28]} 22. b4 {[%clk 0:01:29]}  Qf4 {[%clk 0:01:17]} 23. Rad1 {[%clk 0:01:14]}  Rfd8 {[%clk 0:01:02]} 24. Rfe1 {[%clk 0:01:12]}  h5 {[%clk 0:00:40]} 25. Qe2 {[%clk 0:01:06]}  g6 {[%clk 0:00:26]} 26. Rd3 {[%clk 0:00:46]}  Bg7 {[%clk 0:00:15]} 27. Rf3 {[%clk 0:00:45]}  Qd6 {[%clk 0:00:14]} 28. Qe7 {[%clk 0:00:43]}  Qxe7 {[%clk 0:00:12]} 29. Rxe7 {[%clk 0:00:44]}  f5 {[%clk 0:00:09]} 30. Rxb7 {[%clk 0:00:42]}  Bxd4 {[%clk 0:00:09]} 31. Bxd4 {[%clk 0:00:40]}  Rxd4 {[%clk 0:00:09]} 32. Rc3 {[%clk 0:00:40]}  R8d7 {[%clk 0:00:07]} 33. Rxd7 {[%clk 0:00:39]}  Rxd7 {[%clk 0:00:07]} 34. Rxc6 {[%clk 0:00:40]}  Kf7 {[%clk 0:00:06]} 35. Rxa6 {[%clk 0:00:40]}  Rd1+ {[%clk 0:00:06]} 36. Kh2 {[%clk 0:00:39]}  Rd2 {[%clk 0:00:07]} 37. f3 {[%clk 0:00:33]}  Rb2 {[%clk 0:00:05]} 38. Rb6 {[%clk 0:00:33]}  h4 {[%clk 0:00:05]} 39. a6 {[%clk 0:00:33]}  g5 {[%clk 0:00:05]} 40. a7 {[%clk 0:00:33]}  Ra2 {[%clk 0:00:05]} 41. Rb7+ {[%clk 0:00:32]}  Kf6 {[%clk 0:00:04]} 42. b5 {[%clk 0:00:33]}  g4 {[%clk 0:00:03]} 43. fxg4 {[%clk 0:00:33]}  fxg4 {[%clk 0:00:03]} 44. hxg4 {[%clk 0:00:33]}  Kg5 {[%clk 0:00:04]} 45. b6 {[%clk 0:00:33]}  Kxg4 {[%clk 0:00:03]} 46. Rb8 {[%clk 0:00:31]}  h3 {[%clk 0:00:03]} 47. Rg8+ {[%clk 0:00:32]}  Kh4 {[%clk 0:00:03]} 48. a8=Q {[%clk 0:00:32]}  Rxg2+ {[%clk 0:00:01]} 49. Rxg2 {[%clk 0:00:31]}  hxg2 {[%clk 0:00:00]} 50. Qxg2 {[%clk 0:00:30]} 1-0


[Site "https://www.chess.com"]